Workbook

Sheet Eingabe
A1: Berechnung des Vorsteuerabzugsrechts bei Dienststellen
A2: Die Ausführungen der MWST-Branchen-Info 19 Gemeinwesen, insbesondere des Kapitels F.3, sind zu beachten.
A3: Bitte füllen Sie die grau hinterlegten Zellen aus. Die übrigen Zellen sind nicht zu verändern, damit die korrekte Berechnung des Vorsteuerabzugs gewahrt bleibt.
B5: Jahr | C5: 2024 | E5: Steuersatz | F5: 0.081
B7: Gemeinwesen / DS | E7: MWST-Nr.
A9: 1. Erfassen der Erträge gemäss Jahresrechnung (ER und IR)
A10: Konto | B10: Bezeichnung | D10: Betrag | E10: MWST-rechtliche Qualifikation
A37: Total | D37: =SUM(D11:D36) -> 0
A39: 2. Erfassen der in den MWST-Abrechnungen deklarierten Vorsteuer und der in der Vorsteuerabstimmung festgestellten Differenzen
A40: Quartal | D40: ER (Z 400) | E40: IR (Z 405)
A41: ="Q01 / " & C$5 -> Q01 / 2024
A42: ="Q02 / " & C$5 -> Q02 / 2024
A43: ="Q03 / " & C$5 -> Q03 / 2024
A44: ="Q04 / " & C$5 -> Q04 / 2024
A45: Differenz gem. Vorsteuerabstimmung:
A46: Total | D46: =SUM(Eingabe!$D$41:$D$45) -> 0 | E46: =SUM(Eingabe!$E$41:$E$45) -> 0
A48: ="3. Erfassen der für die Überprüfung und Berechnung einer allfälligen partiellen Nutzungsänderung relevanten Zahlen gemäss Jahresrechnung des Vorjahres" &" (" &C5-1 &")" -> 3. Erfassen der für die Überprüfung und Berechnung einer allfälligen partiellen Nutzungsänderung relevanten Zahlen gemäss Jahresrechnung des Vorjahres (2023)
A49: Beschreibung | F49: Betrag
A50: Einnahmen aus steuerbaren und optierten Leistungen
A51: Von der Steuer ausgenommene Inlandleistungen, für die nicht optiert wurde / ohne Zinseinnahmen und ohne Einnahmen aus Wertpapierhandel
A52: Nicht-objektbezogene Einnahmen aus hoheitlicher Tätigkeit
A54: 4. Berechnungsmethode der Vorsteuerkürzung aufgrund objektbezogener Subventionen
A55: Gewählte Berechnungsmethode: | C55: Stille Versteuerung
D56: =IF(C55="Stille Versteuerung","--> es sind keine zusätzlichen Eingaben notwendig",IF(E56>0,"--> Resultat der eigenen Berechnung:","Bitte Betrag eingeben")) -> --> es sind keine zusätzlichen Eingaben notwendig
A58: 5. Berechnungsmethode der Vorsteuerkorrektur aufgrund objektbezogener hoheitlicher Tätigkeit
A59: Gewählte Berechnungsmethode: | C59: Stille Versteuerung
D60: =IF(C59="Stille Versteuerung","--> es sind keine zusätzlichen Eingaben notwendig",IF(E60>0,"--> Resultat der eigenen Berechnung:","Bitte Betrag eingeben")) -> --> es sind keine zusätzlichen Eingaben notwendig
A62: 6. Nutzungsänderung | B62: =IF(B67-B66>20,"--> nachfolgende blaue Zellen müssen ausgefüllt werden",IF(B66-B67>20,"--> nachfolgende blaue Zellen müssen ausgefüllt werden","nachfolgende blaue Zellen müssen NICHT ausgefüllt werden")) -> nachfolgende blaue Zellen müssen NICHT ausgefüllt werden
A63: Jahr | B63: Bisherige Nutzung im ausgenommenen und hoheitlichen Bereich | C63: Abschreibungsdauer
C65: 20 Jahre | D65: 5 Jahre
A66: =C5 -> 2024 | B66: =IF(Berechnungstabelle!G105=0,0,Berechnungstabelle!G92*100) -> 0 | C66: angefallene Vorsteuer
A67: =A66-1 -> 2023 | B67: =IF(Berechnungstabelle!G101=0,0,Berechnungstabelle!G101*100) -> 0
A68: 2022
A69: 2021
A70: 2020
A71: 2019
A72: 2018
A73: 2017
A74: 2016
A75: 2015
A76: 2014
A77: 2013
A78: 2012
A79: 2011
A80: 2010
A81: 2009
A82: 2008
A83: 2007
A84: 2006
A85: 2005

Sheet Quittung
F1: Eidgenössisches Finanzdepartement EFD Eidgenössische Steuerverwaltung ESTV Hauptabteilung Mehrwertsteuer
A2: Berechnung des Vorsteuerabzugsrechts
A3: =Eingabe!C7 -> 0
A4: =Eingabe!F7 -> 0
A5: ="Jahr " &Eingabe!C5 -> Jahr 2024
A6: Erfasste Zahlen gemäss Jahresrechnung - Total pro Ertragsart
A7: Qualifikation | D7: Bemerkungen | F7: Betrag
A8: steuerbar/optiert | F8: =SUMIF(Eingabe!$E$10:$E$36,A8,Eingabe!$D$10:$D$36) -> 0
A9: befreit | D9: (u.a. Exporte) | F9: =SUMIF(Eingabe!$E$10:$E$36,A9,Eingabe!$D$10:$D$36) -> 0
A10: Ausland | D10: (Leistungen im Ausland) | F10: =SUMIF(Eingabe!$E$10:$E$36,A10,Eingabe!$D$10:$D$36) -> 0
A11: Meldeverfahren | F11: =SUMIF(Eingabe!$E$10:$E$36,A11,Eingabe!$D$10:$D$36) -> 0
A12: Zinseinnahmen | D12: (ausgenommen) | F12: =SUMIF(Eingabe!$E$10:$E$36,A12,Eingabe!$D$10:$D$36) -> 0
A13: Einnahmen aus Wertpapierhandel | D13: (ausgenommen) | F13: =SUMIF(Eingabe!$E$10:$E$36,A13,Eingabe!$D$10:$D$36) -> 0
A14: übr. ausgenommene Leistungen | D14: (übrige ausgenommene) | F14: =SUMIF(Eingabe!$E$10:$E$36,A14,Eingabe!$D$10:$D$36) -> 0
A15: Diverses (z.B. Wert des Bodens) | F15: =SUMIF(Eingabe!$E$10:$E$36,A15,Eingabe!$D$10:$D$36) -> 0
A16: Subvention objektbezogen | F16: =SUMIF(Eingabe!$E$10:$E$36,A16,Eingabe!$D$10:$D$36) -> 0
A17: Subvention nicht objektbezogen | F17: =SUMIF(Eingabe!$E$10:$E$36,A17,Eingabe!$D$10:$D$36) -> 0
A18: Spenden | F18: =SUMIF(Eingabe!$E$10:$E$36,A18,Eingabe!$D$10:$D$36) -> 0
A19: hoheitlich objektbezogen | F19: =SUMIF(Eingabe!$E$10:$E$36,A19,Eingabe!$D$10:$D$36) -> 0
A20: hoheitlich nicht objektbezogen | F20: =SUMIF(Eingabe!$E$10:$E$36,A20,Eingabe!$D$10:$D$36) -> 0
A21: übr. Nicht-Entgelte Art.18/2/d - k MWSTG objektbezogen | F21: =SUMIF(Eingabe!$E$10:$E$36,A21,Eingabe!$D$10:$D$36) -> 0
A22: übr. Nicht-Entgelte Art.18/2/d - k MWSTG nicht objektbezogen | F22: =SUMIF(Eingabe!$E$10:$E$36,A22,Eingabe!$D$10:$D$36) -> 0
A23: unbeachtlich | F23: =SUMIF(Eingabe!$E$10:$E$36,A23,Eingabe!$D$10:$D$36) -> 0
A24: Total | F24: =SUM(F8:F23) -> 0
A27: Berechnung der Vorsteuerkürzung und Vorsteuerkorrektur | F27: Betrag | G27: Betrag
A28: Angefallene objektbezogene Vorsteuer | G28: =Eingabe!E46 -> 0
A30: Vorsteuerkürzung aufgrund objektbezogener Subventionen
A31: =IF(Eingabe!C55="eigene Berechnung","Eigene Berechnung",Berechnungstabelle!A4) -> Subvention (objektbezogen) | E31: =IF(A31="Eigene Berechnung","",Berechnungstabelle!G4) -> 1.081 | F31: =IF(Eingabe!C55="Eigene Berechnung",Berechnungstabelle!F14,Berechnungstabelle!F4) -> 0
A32: =IF(Eingabe!C55="eigene Berechnung","",Berechnungstabelle!A5) -> Vorsteuerkürzung objektbezogen | E32: =IF(A31="Eigene Berechnung","",Berechnungstabelle!G5) -> 0.081 | F32: =IF(A31="Eigene Berechnung","",Berechnungstabelle!F5) -> 0 | G32: =IF(Eingabe!C55="eigene Berechnung",-Quittung!F31,-F32) -> 0
A33: Verbleibende objektbezogene Vorsteuer | G33: =SUM(G28:G32) -> 0
A35: Vorsteuerkorrektur aufgrund Einnahmen aus objektbezogener hoheitlicher Tätigkeit
A36: =IF(Eingabe!C59="eigene Berechnung","Eigene Berechnung",Berechnungstabelle!A25) -> Einnahmen aus hoheitlicher Tätigkeit objektbezogen | E36: =IF(A36="Eigene Berechnung","",Berechnungstabelle!G25) -> 1.081 | F36: =IF(A36="Eigene Berechnung",Berechnungstabelle!F35,Berechnungstabelle!F25) -> 0
A37: =IF(Eingabe!C59="eigene Berechnung","",Berechnungstabelle!A26) -> Vorsteuerkorrektur objektbezogen | E37: =IF(A36="Eigene Berechnung","",Berechnungstabelle!G26) -> 0.081 | F37: =IF(A36="Eigene Berechnung","",Berechnungstabelle!F26) -> 0 | G37: =IF(Eingabe!C59="eigene Berechnung",-F36,-F37) -> 0
A38: Verbleibende objektbezogene Vorsteuer | G38: =SUM(G33:G37) -> 0
A40: + Angefallene nicht objektbezogene Vorsteuer | G40: =Eingabe!D46 -> 0
A41: Total verbleibende Vorsteuer (objektbezogen + nicht objektbezogen) | G41: =SUM(G38:G40) -> 0
A43: Vorsteuerkorrektur aufgrund Zinsertrag und Einnahmen aus Wertpapierhandel
A44: =Berechnungstabelle!A46 -> Umsatz aus steuerbaren und optierten Leistungen | F44: =Berechnungstabelle!F46 -> 0
A45: =Berechnungstabelle!A47 -> Umsatz aus befreiten Leistungen | F45: =Berechnungstabelle!F47 -> 0
A46: =Berechnungstabelle!A48 -> Umsatz aus Leistungen im Ausland | F46: =Berechnungstabelle!F48 -> 0
A47: =Berechnungstabelle!A49 -> Umsatz aus Zinseinnahmen und Einnahmen aus Wertpapierhandel | F47: =Berechnungstabelle!F49 -> 0
A48: =Berechnungstabelle!A50 -> Umsatz aus übrigen von der Steuer ausgenommenen Leistungen | F48: =Berechnungstabelle!F50 -> 0
A49: =Berechnungstabelle!A51 -> Total Bemessungsgrundlage der Vorsteuerkorrektur | E49: 1 | F49: =Berechnungstabelle!F51 -> 0
A50: Zinsertrag und Einnahmen aus Wertpapierhandel | E50: =Berechnungstabelle!G52 -> 0 | F50: =Berechnungstabelle!F52 -> 0
B51: =Berechnungstabelle!A54 -> Vorsteuerkorrektur aufgrund von Zinseinnahmen notwendig? | E51: =Berechnungstabelle!E54 -> Nein
B52: =Berechnungstabelle!A60 -> Keine Vorsteuerkorrektur aufgrund Zins-/Wertpapiereinnahmen notwendig | G52: =-Berechnungstabelle!F60 -> 0
A53: Verbleibende Vorsteuer | G53: =SUM(G41:G52) -> 0 | H53: 1
A55: Vorsteuerkürzung aufgrund nicht objektbezogener Subventionen
A56: =Berechnungstabelle!A67 -> Umsatz aus steuerbaren und optierten Leistungen | F56: =Berechnungstabelle!F67 -> 0
A57: =Berechnungstabelle!A68 -> Umsatz aus befreiten Leistungen | F57: =Berechnungstabelle!F68 -> 0
A58: =Berechnungstabelle!A69 -> Umsatz aus Leistungen im Ausland | F58: =Berechnungstabelle!F69 -> 0
A59: Umsatz aus Zinseinnahmen | F59: =Berechnungstabelle!F70 -> 0
A60: =Berechnungstabelle!A71 -> Umsatz aus übrigen von der Steuer ausgenommenen Leistungen | F60: =Berechnungstabelle!F71 -> 0
A61: Einnahmen aus Spenden | F61: =Berechnungstabelle!F72 -> 0
A62: =Berechnungstabelle!A73 -> Einnahmen aus hoheitlicher Tätigkeit nicht objektbezogen | F62: =Berechnungstabelle!F73 -> 0
A63: =Berechnungstabelle!A74 -> Subventionen nicht objektbezogen | E63: =Berechnungstabelle!G74 -> 0 | F63: =Berechnungstabelle!F74 -> 0
A64: =Berechnungstabelle!A75 -> Total Bemessungsgrundlage der Vorsteuerkürzung | E64: 1 | F64: =Berechnungstabelle!F75 -> 0
A65: =Berechnungstabelle!A78 -> Vorsteuerkürzung nicht objektbezogen aufgrund anderer Subventionen | G65: =-Berechnungstabelle!F78 -> 0 | H65: =E63 -> 0
A66: Verbleibende Vorsteuer | G66: =SUM(G53:G65) -> 0 | H66: 1
A68: Vorsteuerkorrektur aufgrund Einnahmen aus ausgenommenen Leistungen und hoheitlicher Tätigkeit
A69: =Berechnungstabelle!A86 -> Steuerbarer und optierter Umsatz + befreiter Umsatz + Leistungen im Ausland | F69: =Berechnungstabelle!F86 -> 0
A70: =Berechnungstabelle!A87 -> Ausgenommener Umsatz (ohne Zinseinnahmen/Einnahmen aus dem Handel
A71: =Berechnungstabelle!A88 -> mit Wertpapieren) + Einnahmen aus hoheitlicher Tätigkeit nicht objektbezogen | E71: =Berechnungstabelle!G88 -> 0 | F71: =Berechnungstabelle!F88 -> 0
A72: =Berechnungstabelle!A89 -> Total Bemessungsgrundlage der Vorsteuerkorrektur | E72: 1 | F72: =Berechnungstabelle!F89 -> 0
A73: =Berechnungstabelle!A92 -> Vorsteuerkorrektur gemischte Verwendung (ausgenommene Leistungen und hoheitliche Tätigkeit) | G73: =-Berechnungstabelle!F92 -> 0 | H73: =E71 -> 0
A74: Verbleibende Vorsteuer | G74: =SUM(G66:G73) -> 0
A76: Korrekturen aufgrund Nutzungsänderungen (Eigenverbrauch/Einlageentsteuerung)
A77: =Berechnungstabelle!A99 -> Vorjahr: Steuerbarer und optierter Umsatz | E77: =Berechnungstabelle!G99 -> 0 | F77: =Berechnungstabelle!F99 -> 0
A78: =Berechnungstabelle!A100 -> Vorjahr: Ausgenommener Umsatz und Einnahmen aus hoheitlicher
A79: =Berechnungstabelle!A101 -> Tätigkeit (nicht objektbezogen) | E79: =Berechnungstabelle!G101 -> 0 | F79: =Berechnungstabelle!F101 -> 0
A80: =Berechnungstabelle!A102 -> Total Bemessungsgrundlage der Vorsteuerkorrektur Vorjahr | E80: =Berechnungstabelle!G102 -> 1 | F80: =Berechnungstabelle!F102 -> 0
D82: Nutzungsänderung (Einlageentsteuerung/Eigenverbrauch)? | E82: =Berechnungstabelle!G108 -> Nein
D83: =Berechnungstabelle!A112 -> keine Nutzungsänderung (20 Jahre Abschreibungsdauer) | G83: =G133 -> 0
D84: =Berechnungstabelle!A113 -> keine Einlageentsteuerung (5 Jahre Abschreibungsdauer) | G84: =G142 -> 0
A85: Verbleibende Vorsteuer | G85: =SUM(G74:G84) -> 0
A88: Deklaration in der MWST-Abrechnung
A89: Ziffer | B89: Beschreibung | G89: Betrag
A90: 400 | B90: Vorsteuer auf Material- und Dienstleistungsaufwand | G90: =Berechnungstabelle!F58 -> 0
A91: 405 | B91: Vorsteuer auf Investitionen und übrigem Betriebsaufwand | G91: =Berechnungstabelle!F7 -> 0
A92: 410 | B92: Einlageentsteuerung (Art. 32) | G92: =IF(G133+G142>0,G133+G142,0) -> 0
A93: 415 | B93: Vorsteuerkorrekturen: gemischte Verwendung (Art. 30) und Eigenverbrauch (Art. 31) | G93: =IF(G133+G142<0,G133+G142+G37+G52+G73,G37+G52+G73) -> 0
A94: 420 | B94: Vorsteuerkürzungen (Art. 33 Abs. 2) | G94: =G32+G65 -> 0
A95: 479 | B95: Total Ziff. 400 bis 420 | G95: =SUM(G90:G94) -> 0
A106: Berechnungsblatt zu MWST-Branchen-Info Gemeinwesen | E106: Seite 1 von 2 | H106: Version 2024/09
F110: Eidgenössisches Finanzdepartement EFD Eidgenössische Steuerverwaltung ESTV Hauptabteilung Mehrwertsteuer
A111: Übersicht Berechnung Nutzungsänderung (Eigenverbrauch/Einlageentsteuerung)
A112: Jahr | B112: angefallene Vorsteuer | C112: Abschreibung | D112: Zeitwert im laufenden Jahr | E112: Massgebende Nutzung | F112: Veränderung zum laufenden Jahr | G112: Betrag
A113: =Berechnungstabelle!A120 -> 2024 | E113: =Berechnungstabelle!F120 -> 0
A114: =Berechnungstabelle!A121 -> 2023 | B114: =Berechnungstabelle!B121 -> 0 | C114: =Berechnungstabelle!C121 -> 0.05 | D114: =Berechnungstabelle!D121 -> 0 | E114: =Berechnungstabelle!F121 -> 0 | F114: =Berechnungstabelle!H121 -> 0 | G114: =Berechnungstabelle!I121 -> 0
A115: =Berechnungstabelle!A122 -> 2022 | B115: =Berechnungstabelle!B122 -> 0 | C115: =Berechnungstabelle!C122 -> 0.1 | D115: =Berechnungstabelle!D122 -> 0 | E115: =Berechnungstabelle!F122 -> 0 | F115: =Berechnungstabelle!H122 -> 0 | G115: =Berechnungstabelle!I122 -> 0
A116: =Berechnungstabelle!A123 -> 2021 | B116: =Berechnungstabelle!B123 -> 0 | C116: =Berechnungstabelle!C123 -> 0.15 | D116: =Berechnungstabelle!D123 -> 0 | E116: =Berechnungstabelle!F123 -> 0 | F116: =Berechnungstabelle!H123 -> 0 | G116: =Berechnungstabelle!I123 -> 0
A117: =Berechnungstabelle!A124 -> 2020 | B117: =Berechnungstabelle!B124 -> 0 | C117: =Berechnungstabelle!C124 -> 0.2 | D117: =Berechnungstabelle!D124 -> 0 | E117: =Berechnungstabelle!F124 -> 0 | F117: =Berechnungstabelle!H124 -> 0 | G117: =Berechnungstabelle!I124 -> 0
A118: =Berechnungstabelle!A125 -> 2019 | B118: =Berechnungstabelle!B125 -> 0 | C118: =Berechnungstabelle!C125 -> 0.25 | D118: =Berechnungstabelle!D125 -> 0 | E118: =Berechnungstabelle!F125 -> 0 | F118: =Berechnungstabelle!H125 -> 0 | G118: =Berechnungstabelle!I125 -> 0
A119: =Berechnungstabelle!A126 -> 2018 | B119: =Berechnungstabelle!B126 -> 0 | C119: =Berechnungstabelle!C126 -> 0.3 | D119: =Berechnungstabelle!D126 -> 0 | E119: =Berechnungstabelle!F126 -> 0 | F119: =Berechnungstabelle!H126 -> 0 | G119: =Berechnungstabelle!I126 -> 0
A120: =Berechnungstabelle!A127 -> 2017 | B120: =Berechnungstabelle!B127 -> 0 | C120: =Berechnungstabelle!C127 -> 0.35 | D120: =Berechnungstabelle!D127 -> 0 | E120: =Berechnungstabelle!F127 -> 0 | F120: =Berechnungstabelle!H127 -> 0 | G120: =Berechnungstabelle!I127 -> 0
A121: =Berechnungstabelle!A128 -> 2016 | B121: =Berechnungstabelle!B128 -> 0 | C121: =Berechnungstabelle!C128 -> 0.4 | D121: =Berechnungstabelle!D128 -> 0 | E121: =Berechnungstabelle!F128 -> 0 | F121: =Berechnungstabelle!H128 -> 0 | G121: =Berechnungstabelle!I128 -> 0
A122: =Berechnungstabelle!A129 -> 2015 | B122: =Berechnungstabelle!B129 -> 0 | C122: =Berechnungstabelle!C129 -> 0.45 | D122: =Berechnungstabelle!D129 -> 0 | E122: =Berechnungstabelle!F129 -> 0 | F122: =Berechnungstabelle!H129 -> 0 | G122: =Berechnungstabelle!I129 -> 0
A123: =Berechnungstabelle!A130 -> 2014 | B123: =Berechnungstabelle!B130 -> 0 | C123: =Berechnungstabelle!C130 -> 0.5 | D123: =Berechnungstabelle!D130 -> 0 | E123: =Berechnungstabelle!F130 -> 0 | F123: =Berechnungstabelle!H130 -> 0 | G123: =Berechnungstabelle!I130 -> 0
A124: =Berechnungstabelle!A131 -> 2013 | B124: =Berechnungstabelle!B131 -> 0 | C124: =Berechnungstabelle!C131 -> 0.55 | D124: =Berechnungstabelle!D131 -> 0 | E124: =Berechnungstabelle!F131 -> 0 | F124: =Berechnungstabelle!H131 -> 0 | G124: =Berechnungstabelle!I131 -> 0
A125: =Berechnungstabelle!A132 -> 2012 | B125: =Berechnungstabelle!B132 -> 0 | C125: =Berechnungstabelle!C132 -> 0.6 | D125: =Berechnungstabelle!D132 -> 0 | E125: =Berechnungstabelle!F132 -> 0 | F125: =Berechnungstabelle!H132 -> 0 | G125: =Berechnungstabelle!I132 -> 0
A126: =Berechnungstabelle!A133 -> 2011 | B126: =Berechnungstabelle!B133 -> 0 | C126: =Berechnungstabelle!C133 -> 0.65 | D126: =Berechnungstabelle!D133 -> 0 | E126: =Berechnungstabelle!F133 -> 0 | F126: =Berechnungstabelle!H133 -> 0 | G126: =Berechnungstabelle!I133 -> 0
A127: =Berechnungstabelle!A134 -> 2010 | B127: =Berechnungstabelle!B134 -> 0 | C127: =Berechnungstabelle!C134 -> 0.7 | D127: =Berechnungstabelle!D134 -> 0 | E127: =Berechnungstabelle!F134 -> 0 | F127: =Berechnungstabelle!H134 -> 0 | G127: =Berechnungstabelle!I134 -> 0
A128: =Berechnungstabelle!A135 -> 2009 | B128: =Berechnungstabelle!B135 -> 0 | C128: =Berechnungstabelle!C135 -> 0.75 | D128: =Berechnungstabelle!D135 -> 0 | E128: =Berechnungstabelle!F135 -> 0 | F128: =Berechnungstabelle!H135 -> 0 | G128: =Berechnungstabelle!I135 -> 0
A129: =Berechnungstabelle!A136 -> 2008 | B129: =Berechnungstabelle!B136 -> 0 | C129: =Berechnungstabelle!C136 -> 0.8 | D129: =Berechnungstabelle!D136 -> 0 | E129: =Berechnungstabelle!F136 -> 0 | F129: =Berechnungstabelle!H136 -> 0 | G129: =Berechnungstabelle!I136 -> 0
A130: =Berechnungstabelle!A137 -> 2007 | B130: =Berechnungstabelle!B137 -> 0 | C130: =Berechnungstabelle!C137 -> 0.85 | D130: =Berechnungstabelle!D137 -> 0 | E130: =Berechnungstabelle!F137 -> 0 | F130: =Berechnungstabelle!H137 -> 0 | G130: =Berechnungstabelle!I137 -> 0
A131: =Berechnungstabelle!A138 -> 2006 | B131: =Berechnungstabelle!B138 -> 0 | C131: =Berechnungstabelle!C138 -> 0.9 | D131: =Berechnungstabelle!D138 -> 0 | E131: =Berechnungstabelle!F138 -> 0 | F131: =Berechnungstabelle!H138 -> 0 | G131: =Berechnungstabelle!I138 -> 0
A132: =Berechnungstabelle!A139 -> 2005 | B132: =Berechnungstabelle!B139 -> 0 | C132: =Berechnungstabelle!C139 -> 0.95 | D132: =Berechnungstabelle!D139 -> 0 | E132: =Berechnungstabelle!F139 -> 0 | F132: =Berechnungstabelle!H139 -> 0 | G132: =Berechnungstabelle!I139 -> 0
A133: Nutzungsänderung 20 Jahre (+ = Einlageentsteuerung; - = Eigenverbrauch) | G133: =ROUND(SUM(G114:G132)*20,0)/20 -> 0
A135: Vorhandene Vorsteuern aus Vorjahren / Abschreibungsdauer 5 Jahre
A136: Jahr | B136: angefallene Vorsteuer | C136: Abschreibung | D136: Zeitwert im laufenden Jahr | E136: Massgebende Nutzung | F136: Veränderung zum laufenden Jahr | G136: Betrag
A137: =A113 -> 2024 | E137: =E113 -> 0
A138: =A114 -> 2023 | B138: =+Berechnungstabelle!B146 -> 0 | C138: =C137+0.2 -> 0.2 | D138: =B138*(100%-C138) -> 0 | E138: =E114 -> 0 | F138: =F114 -> 0 | G138: =Berechnungstabelle!I146 -> 0
A139: =A138-1 -> 2022 | B139: =+Berechnungstabelle!B147 -> 0 | C139: =C138+0.2 -> 0.4 | D139: 0 | E139: =E115 -> 0 | F139: =F115 -> 0 | G139: =Berechnungstabelle!I147 -> 0
A140: =A139-1 -> 2021 | B140: =+Berechnungstabelle!B148 -> 0 | C140: =C139+0.2 -> 0.6 | D140: 0 | E140: =E116 -> 0 | F140: =F116 -> 0 | G140: =Berechnungstabelle!I148 -> 0
A141: =A140-1 -> 2020 | B141: =+Berechnungstabelle!B149 -> 0 | C141: =C140+0.2 -> 0.8 | D141: 0 | E141: =E117 -> 0 | F141: =F117 -> 0 | G141: =Berechnungstabelle!I149 -> 0
A142: Nutzungsänderung 5 Jahre (+ = Einlageentsteuerung; - = Eigenverbrauch) | G142: =ROUND(SUM(G138:G141)*20,0)/20 -> 0
A144: Es ist im Einzelfall zu prüfen, ob die Berechnung des Vorsteuerabzugsrechts mit Hilfe dieses Formulars zu einem sachgerechten Ergebnis führt. Eine MWST-Kontrolle gemäss Art. 78 MWSTG bleibt vorbehalten.
A215: Berechnungsblatt zu MWST-Branchen-Info Gemeinwesen | E215: Seite 2 von 2 | H215: Version 2024/09

Sheet Berechnungstabelle (hidden)
A1: 2.1 Vorsteuerkürzung aufgrund objektbezogener Subventionen
A3: Variante 1: Stille Versteuerung | F3: Betrag | G3: Prozent
A4: Subvention (objektbezogen) | F4: =Quittung!F16 -> 0 | G4: =1+Eingabe!F5 -> 1.081
A5: Vorsteuerkürzung objektbezogen | F5: =IF(F4>0,ROUND(F4/G4*G5*20,0)/20,0) -> 0 | G5: =G4-1 -> 0.081
A7: Angefallene Vorsteuern (IR) | F7: =Eingabe!E46 -> 0
A8: Vorsteuerkürzung objektbezogen | E8: ./. | F8: =F5 -> 0
A9: Verbleibende Vorsteuer Variante 1 | E9: = | F9: =F7-F8 -> 0
A12: Variante 2: gemäss eigener Berechnung | F12: Betrag
A13: Angefallene Vorsteuern (IR) | F13: =F7 -> 0
A14: Vorsteuerkürzung objektbezogen gem. eigener Berechnung | E14: ./. | F14: =IF(Eingabe!E56>0,Eingabe!E56,"Stille Versteuerung") -> Stille Versteuerung
A15: Verbleibende Vorsteuer Variante 2 | E15: = | F15: =F13-F14 -> 
A18: Verbleibende Vorsteuer für weitere Berechnung | E18: = | F18: =IF(Eingabe!C55="Stille Versteuerung",F9,F15) -> 0
A21: 2.2 Vorsteuerkorrektur aufgrund objektbezogener Einnahmen im nicht
A22: unternehmerischen Bereich
A24: Variante 1: Stille Versteuerung | F24: Betrag | G24: Prozent
A25: Einnahmen aus hoheitlicher Tätigkeit objektbezogen | F25: =Quittung!F19 -> 0 | G25: =1+Eingabe!F5 -> 1.081
A26: Vorsteuerkorrektur objektbezogen | F26: =ROUND(F25/G25*G26*20,0)/20 -> 0 | G26: =G25-1 -> 0.081
A28: Verbleibende Vorsteuer Ziffer 2.1 | F28: =Berechnungstabelle!F18 -> 0
A29: Vorsteuerkorrektur objektbezogen | E29: ./. | F29: =F26 -> 0
A30: Verbleibende Vorsteuer Variante 1 | E30: = | F30: =F28-F29 -> 0
A33: Variante 2: gemäss eigener Berechnung | F33: Betrag
A34: Angefallene Vorsteuern (IR) | F34: =F28 -> 0
A35: Vorsteuerkürzung objektbezogen gem. eigener Berechnung | E35: ./. | F35: =IF(Eingabe!E60>0,Eingabe!E60,"Stille Versteuerung") -> Stille Versteuerung
A36: Verbleibende Vorsteuer Variante 2 | E36: = | F36: =F34-F35 -> 
A39: Verbleibende Vorsteuer für weitere Berechnung | E39: = | F39: =IF(Eingabe!C59="Stille Versteuerung",F30,F36) -> 0
A42: 2.3 Vorsteuerkorrektur aufgrund von Zinseinnahmen und von
A43: Einnahmen aus dem Handel mit Wertpapieren
A45: Beschreibung | F45: Betrag | G45: Prozent
A46: Umsatz aus steuerbaren und optierten Leistungen | F46: =Quittung!F8 -> 0
A47: Umsatz aus befreiten Leistungen | E47: + | F47: =Quittung!F9 -> 0
A48: Umsatz aus Leistungen im Ausland | E48: + | F48: =Quittung!F10 -> 0
A49: Umsatz aus Zinseinnahmen und Einnahmen aus Wertpapierhandel | E49: + | F49: =Quittung!F13+Quittung!F12 -> 0
A50: Umsatz aus übrigen von der Steuer ausgenommenen Leistungen | E50: + | F50: =Quittung!F14 -> 0
A51: Total Bemessungsgrundlage der Vorsteuerkorrektur | F51: =SUM(F46:F50) -> 0 | G51: 1
A52: Zinsertrag (interner und externer; Konto 440X) und Einnahmen aus Wertpapierhandel | F52: =F49 -> 0 | G52: =IF(F52>0,ROUND(G51/F51*F52,4),0%) -> 0
A54: Vorsteuerkorrektur aufgrund von Zinseinnahmen notwendig? | E54: =IF(F52>10000,IF(G52>5%,"Ja","Nein"),"Nein") -> Nein
A56: Beschreibung | F56: Betrag
A57: Verbleibende objektbezogene Vorsteuer gemäss Ziffer 2.2 | F57: =Berechnungstabelle!F39 -> 0
A58: nicht objektbezogene Vorsteuern | E58: + | F58: =Eingabe!D46 -> 0
A59: Total verbleibende VOST | E59: = | F59: =SUM(F57:F58) -> 0
A60: =IF(E54="Ja","Vorsteuerkorrektur aufgrund von Zinseinnahmen: 0.02% vom Zinsertrag (CHF " &F52 &")","Keine Vorsteuerkorrektur aufgrund Zins-/Wertpapiereinnahmen notwendig") -> Keine Vorsteuerkorrektur aufgrund Zins-/Wertpapiereinnahmen notwendig | E60: ./. | F60: =IF(E54="Ja",ROUND(F52*0.02%*20,0)/20,0) -> 0
A61: Verbleibende Vorsteuer | E61: = | F61: =F59-F60 -> 0
A64: 2.4 Vorsteuerkürzung aufgrund anderer Subventionen
A66: Beschreibung | F66: Betrag | G66: Prozent
A67: Umsatz aus steuerbaren und optierten Leistungen | F67: =Quittung!F8 -> 0
A68: Umsatz aus befreiten Leistungen | E68: + | F68: =Quittung!F9 -> 0
A69: Umsatz aus Leistungen im Ausland | E69: + | F69: =Quittung!F10 -> 0
A70: Umsatz aus Zinseinnahmen | E70: + | F70: =Quittung!F12 -> 0
A71: Umsatz aus übrigen von der Steuer ausgenommenen Leistungen | E71: + | F71: =Quittung!F14 -> 0
A72: Einnahmen aus Spenden | E72: + | F72: =Quittung!F18 -> 0
A73: Einnahmen aus hoheitlicher Tätigkeit nicht objektbezogen | E73: + | F73: =Quittung!F20 -> 0
A74: Subventionen nicht objektbezogen | E74: + | F74: =Quittung!F17 -> 0 | G74: =IF(F74>0,ROUND(G75/F75*F74,4),0%) -> 0
A75: Total Bemessungsgrundlage der Vorsteuerkürzung | E75: = | F75: =SUM(F67:F74) -> 0 | G75: 1
A77: Verbleibende Vorsteuer gemäss Ziffer 2.3 | F77: =Berechnungstabelle!F61 -> 0 | G77: 1
A78: Vorsteuerkürzung nicht objektbezogen aufgrund anderer Subventionen | E78: ./. | F78: =ROUND(F77/G77*G78*20,0)/20 -> 0 | G78: =IF(F74>0,G74,0%) -> 0
A79: Verbleibende Vorsteuer | E79: = | F79: =F77-F78 -> 0
A82: 2.5 Vorsteuerkorrektur aufgrund von ausgenommenen Leistungen und
A83: nicht objektbezogener Einnahmen aus hoheitlicher Tätigkeit
A85: Beschreibung | F85: Betrag | G85: Prozent
A86: Steuerbarer und optierter Umsatz + befreiter Umsatz + Leistungen im Ausland | F86: =Quittung!F8+Quittung!F9+Quittung!F10 -> 0 | G86: =IF(F89=0,0,ROUND(G89/F89*F86,4)) -> 0
A87: Ausgenommener Umsatz (ohne Zinseinnahmen/Einnahmen aus dem Handel
A88: mit Wertpapieren) + Einnahmen aus hoheitlicher Tätigkeit nicht objektbezogen | E88: + | F88: =Quittung!F14+Quittung!F20 -> 0 | G88: =IF(F89=0,0,ROUND(G89/F89*F88,4)) -> 0
A89: Total Bemessungsgrundlage der Vorsteuerkorrektur | E89: = | F89: =SUM(F86:F88) -> 0 | G89: 1
A91: Verbleibende Vorsteuer gemäss Ziffer 2.4 | F91: =Berechnungstabelle!F79 -> 0 | G91: 1
A92: Vorsteuerkorrektur gemischte Verwendung (ausgenommene Leistungen und hoheitliche Tätigkeit) | E92: ./. | F92: =ROUND(F91/G91*G92*20,0)/20 -> 0 | G92: =G88 -> 0
A93: Verbleibende Vorsteuer | E93: = | F93: =F91-F92 -> 0
A96: 2.6 Nutzungsänderung
A98: Beschreibung | F98: Betrag | G98: Prozent
A99: Vorjahr: Steuerbarer und optierter Umsatz | F99: =Eingabe!F50 -> 0 | G99: =IF(F99>0,ROUND(G102/F102*F99,4),0) -> 0
A100: Vorjahr: Ausgenommener Umsatz und Einnahmen aus hoheitlicher
A101: Tätigkeit (nicht objektbezogen) | E101: + | F101: =Eingabe!F51+Eingabe!F52 -> 0 | G101: =IF(F102>0,ROUND(G102/F102*F101,4),0) -> 0
A102: Total Bemessungsgrundlage der Vorsteuerkorrektur Vorjahr | E102: = | F102: =SUM(F99:F101) -> 0 | G102: 1
A104: Anteil ausgenommener Umsatz + Einnahmen aus hoheitlicher Tätigkeit nicht objektbezogen Vorjahr gemäss obiger Berechnung: | G104: =G101 -> 0
A105: Anteil ausgenommener Umsatz + Einnahmen aus hoheitlicher Tätigkeit nicht objektbezogen laufendes Jahr gemäss Ziffer 2.5: | E105: ./. | G105: =Berechnungstabelle!G88 -> 0
A106: Nutzungsänderung gegenüber Vorjahr | E106: = | G106: =IF(G104+G105<>0,G104-G105,0%) -> 0
A108: Liegt eine Nutzungsänderung vor, die eine Einlageentsteuerung/Eigenverbrauch auslöst? | G108: =IF(G106>20%,"Ja",IF(G106<-20%,"Ja","Nein")) -> Nein
A110: Beschreibung | F110: Betrag
A111: Verbleibende Vorsteuer gemäss Ziffer 2.5 | F111: =F93 -> 0
A112: =IF(G108="Ja",IF(F112<0,"Eigenverbrauch Vorsteuern mit 20 Jahren Abschreibungsdauer","Einlageentsteuerung Vorsteuern mit 20 Jahren Abschreibungsdauer"),"keine Nutzungsänderung (20 Jahre Abschreibungsdauer)") -> keine Nutzungsänderung (20 Jahre Abschreibungsdauer) | E112: =IF(F112>0,"+","") ->  | F112: =I140 -> 0
A113: =IF(G108="Ja",IF(F113<0,"Eigenverbrauch Vorsteuern mit 5 Jahren Abschreibungsdauer","Einlageentsteuerung Vorsteuern mit 5 Jahren Abschreibungsdauer"),"keine Einlageentsteuerung (5 Jahre Abschreibungsdauer)") -> keine Einlageentsteuerung (5 Jahre Abschreibungsdauer) | E113: =IF(F113>0,"+","") ->  | F113: =I150 -> 0
A114: Verbleibende Vorsteuer | E114: = | F114: =SUM(F111:F113) -> 0
A118: Vorhandene Vorsteuern aus Vorjahren / Abschreibungsdauer 20 Jahre
A119: Jahr | B119: angefallene Vorsteuer | C119: Abschreibung | D119: Zeitwert im laufenden Jahr | E119: Bisherige Nutzung im ausgenommenen Bereich | F119: Massgebende Nutzung | G119: Nutzungsänderung | H119: Veränderung zum laufenden Jahr | I119: Betrag | J119: Zeile | K119: massgebende Nutzung
A120: =Eingabe!C5 -> 2024 | E120: =Eingabe!B66 -> 0 | F120: =E120 -> 0 | G120: =IF(E120-E121>20,"Ja",IF(E121-E120>20,"Ja","Nein")) -> Nein
A121: =A120-1 -> 2023 | B121: =Eingabe!C67 -> 0 | C121: =C120+0.05 -> 0.05 | D121: =B121*(100%-C121) -> 0 | E121: =Eingabe!B67 -> 0 | F121: =IF(J121<J$140,E121,K$140) -> 0 | G121: Nein | H121: =F121-F120 -> 0 | I121: =IF(G120="Ja",D121*H121/100,0) -> 0 | J121: =ROW(G121) -> 121
A122: 2022 | B122: =Eingabe!C68 -> 0 | C122: 0.1 | D122: 0 | E122: =Eingabe!B68 -> 0 | F122: 0 | G122: Nein | H122: =F122-F$120 -> 0 | I122: =IF(Berechnungstabelle!$G$108="Ja",D122*H122/100,0) -> 0 | J122: 122
A123: 2021 | B123: =Eingabe!C69 -> 0 | C123: 0.15 | D123: 0 | E123: =Eingabe!B69 -> 0 | F123: 0 | G123: Nein | H123: 0 | I123: =IF(Berechnungstabelle!$G$108="Ja",D123*H123/100,0) -> 0 | J123: 123
A124: 2020 | B124: =Eingabe!C70 -> 0 | C124: 0.2 | D124: 0 | E124: =Eingabe!B70 -> 0 | F124: 0 | G124: Nein | H124: 0 | I124: =IF(Berechnungstabelle!$G$108="Ja",D124*H124/100,0) -> 0 | J124: 124
A125: 2019 | B125: =Eingabe!C71 -> 0 | C125: 0.25 | D125: 0 | E125: =Eingabe!B71 -> 0 | F125: 0 | G125: Nein | H125: 0 | I125: =IF(Berechnungstabelle!$G$108="Ja",D125*H125/100,0) -> 0 | J125: 125
A126: 2018 | B126: =Eingabe!C72 -> 0 | C126: 0.3 | D126: 0 | E126: =Eingabe!B72 -> 0 | F126: 0 | G126: Nein | H126: 0 | I126: =IF(Berechnungstabelle!$G$108="Ja",D126*H126/100,0) -> 0 | J126: 126
A127: 2017 | B127: =Eingabe!C73 -> 0 | C127: 0.35 | D127: 0 | E127: =Eingabe!B73 -> 0 | F127: 0 | G127: Nein | H127: 0 | I127: =IF(Berechnungstabelle!$G$108="Ja",D127*H127/100,0) -> 0 | J127: 127
A128: 2016 | B128: =Eingabe!C74 -> 0 | C128: 0.4 | D128: 0 | E128: =Eingabe!B74 -> 0 | F128: 0 | G128: Nein | H128: 0 | I128: =IF(Berechnungstabelle!$G$108="Ja",D128*H128/100,0) -> 0 | J128: 128
A129: 2015 | B129: =Eingabe!C75 -> 0 | C129: 0.45 | D129: 0 | E129: =Eingabe!B75 -> 0 | F129: 0 | G129: Nein | H129: 0 | I129: =IF(Berechnungstabelle!$G$108="Ja",D129*H129/100,0) -> 0 | J129: 129
A130: 2014 | B130: =Eingabe!C76 -> 0 | C130: 0.5 | D130: 0 | E130: =Eingabe!B76 -> 0 | F130: 0 | G130: Nein | H130: 0 | I130: =IF(Berechnungstabelle!$G$108="Ja",D130*H130/100,0) -> 0 | J130: 130
A131: 2013 | B131: =Eingabe!C77 -> 0 | C131: 0.55 | D131: 0 | E131: =Eingabe!B77 -> 0 | F131: 0 | G131: Nein | H131: 0 | I131: =IF(Berechnungstabelle!$G$108="Ja",D131*H131/100,0) -> 0 | J131: 131
A132: 2012 | B132: =Eingabe!C78 -> 0 | C132: 0.6 | D132: 0 | E132: =Eingabe!B78 -> 0 | F132: 0 | G132: Nein | H132: 0 | I132: =IF(Berechnungstabelle!$G$108="Ja",D132*H132/100,0) -> 0 | J132: 132
A133: 2011 | B133: =Eingabe!C79 -> 0 | C133: 0.65 | D133: 0 | E133: =Eingabe!B79 -> 0 | F133: 0 | G133: Nein | H133: 0 | I133: =IF(Berechnungstabelle!$G$108="Ja",D133*H133/100,0) -> 0 | J133: 133
A134: 2010 | B134: =Eingabe!C80 -> 0 | C134: 0.7 | D134: 0 | E134: =Eingabe!B80 -> 0 | F134: 0 | G134: Nein | H134: 0 | I134: =IF(Berechnungstabelle!$G$108="Ja",D134*H134/100,0) -> 0 | J134: 134
A135: 2009 | B135: =Eingabe!C81 -> 0 | C135: 0.75 | D135: 0 | E135: =Eingabe!B81 -> 0 | F135: 0 | G135: Nein | H135: 0 | I135: =IF(Berechnungstabelle!$G$108="Ja",D135*H135/100,0) -> 0 | J135: 135
A136: 2008 | B136: =Eingabe!C82 -> 0 | C136: 0.8 | D136: 0 | E136: =Eingabe!B82 -> 0 | F136: 0 | G136: Nein | H136: 0 | I136: =IF(Berechnungstabelle!$G$108="Ja",D136*H136/100,0) -> 0 | J136: 136
A137: 2007 | B137: =Eingabe!C83 -> 0 | C137: 0.85 | D137: 0 | E137: =Eingabe!B83 -> 0 | F137: 0 | G137: Nein | H137: =F137-F$120 -> 0 | I137: =IF(Berechnungstabelle!$G$108="Ja",D137*H137/100,0) -> 0 | J137: 137
A138: 2006 | B138: =Eingabe!C84 -> 0 | C138: 0.9 | D138: 0 | E138: =Eingabe!B84 -> 0 | F138: 0 | G138: Nein | H138: =F138-F$120 -> 0 | I138: =IF(Berechnungstabelle!$G$108="Ja",D138*H138/100,0) -> 0 | J138: 138
A139: 2005 | B139: =Eingabe!C85 -> 0 | C139: 0.95 | D139: 0 | E139: =Eingabe!B85 -> 0 | F139: 0 | H139: =F139-F$120 -> 0 | I139: =IF(Berechnungstabelle!$G$108="Ja",D139*H139/100,0) -> 0 | J139: 139
A140: Nutzungsänderung 20 Jahre (+ = Einlageentsteuerung; - = Eigenverbrauch) | I140: =ROUND(SUM(I121:I139)*20,0)/20 -> 0 | J140: =_xlfn.XLOOKUP("Ja",G121:G139,J121:J139,"keine NÄ") -> keine NÄ | K140: =_xlfn.XLOOKUP("Ja",G121:G138,E121:E138,"keine NÄ") -> keine NÄ
A142: Vorhandene Vorsteuern aus Vorjahren / Abschreibungsdauer 5 Jahre
A143: Jahr | B143: angefallene Vorsteuer | C143: Abschreibung | D143: Zeitwert im laufenden Jahr | E143: Bisherige Nutzung im ausgenom-menen Bereich | G143: Nutzungsänderung | H143: Veränderung zum laufenden Jahr | I143: Betrag | J143: Zeile
A145: =A120 -> 2024 | E145: =E120 -> 0 | F145: =E145 -> 0 | G145: =IF(E145-E146>20,"Ja",IF(E146-E145>20,"Ja","Nein")) -> Nein
A146: =A121 -> 2023 | B146: =Eingabe!D67 -> 0 | C146: =C145+0.2 -> 0.2 | D146: =B146*(100%-C146) -> 0 | E146: =E121 -> 0 | F146: =IF(J146<J$150,E146,K$150) -> 0 | G146: =IF(E146-E147>20,"Ja",IF(E147-E146>20,"Ja","Nein")) -> Nein | H146: =F146-F$145 -> 0 | I146: =IF(Berechnungstabelle!$G$108="Ja",D146*H146/100,0) -> 0 | J146: =ROW(G146) -> 146
A147: =A146-1 -> 2022 | B147: =Eingabe!D68 -> 0 | C147: =C146+0.2 -> 0.4 | D147: =B147*(100%-C147) -> 0 | E147: =E122 -> 0 | F147: =IF(J147<J$150,E147,K$150) -> 0 | G147: =IF(E147-E148>20,"Ja",IF(E148-E147>20,"Ja","Nein")) -> Nein | H147: =F147-F$145 -> 0 | I147: =IF(Berechnungstabelle!$G$108="Ja",D147*H147/100,0) -> 0 | J147: =ROW(G147) -> 147
A148: =A147-1 -> 2021 | B148: =Eingabe!D69 -> 0 | C148: =C147+0.2 -> 0.6 | D148: =B148*(100%-C148) -> 0 | E148: =E123 -> 0 | F148: =IF(J148<J$150,E148,K$150) -> 0 | G148: =IF(E148-E149>20,"Ja",IF(E149-E148>20,"Ja","Nein")) -> Nein | H148: =F148-F$145 -> 0 | I148: =IF(Berechnungstabelle!$G$108="Ja",D148*H148/100,0) -> 0 | J148: =ROW(G148) -> 148
A149: =A148-1 -> 2020 | B149: =Eingabe!D70 -> 0 | C149: =C148+0.2 -> 0.8 | D149: =B149*(100%-C149) -> 0 | E149: =E124 -> 0 | F149: =IF(J149<J$150,E149,K$150) -> 0 | G149: - | H149: =F149-F$145 -> 0 | I149: =IF(Berechnungstabelle!$G$108="Ja",D149*H149/100,0) -> 0 | J149: =ROW(G149) -> 149
A150: Nutzungsänderung 5 Jahre (+ = Einlageentsteuerung; - = Eigenverbrauch) | I150: =ROUND(SUM(I146:I149)*20,0)/20 -> 0 | J150: =_xlfn.XLOOKUP("Ja",G146:G148,J146:J148,"keine NÄ") -> keine NÄ | K150: =_xlfn.XLOOKUP("Ja",G146:G148,E146:E148,"keine NÄ") -> keine NÄ
